[Event "Titled Tuesday Blitz March 15 Late 2022"]
[White "Chiu, Isaac"]
[Black "Brunner, Nicolas"]
[WhiteFideId "30900654"]
[BlackFideId "620246"]
[WhiteElo "2117"]
[BlackElo "2372"]
[Result "0-1"]
[Round "11"]
[TimeControl "180+1"]
[Date "2022.03.16"]
[WhiteClock "0:00:06"]
[BlackClock "0:00:04"]

1. b3 {[%clk 0:02:55]}  e5 {[%clk 0:02:50]} 2. Bb2 {[%clk 0:02:55]}  Nc6 {[%clk 0:02:50]} 3. e3 {[%clk 0:02:55]}  Nf6 {[%clk 0:02:49]} 4. Nf3 {[%clk 0:02:55]}  e4 {[%clk 0:02:46]} 5. Nd4 {[%clk 0:02:55]}  Nxd4 {[%clk 0:02:46]} 6. Bxd4 {[%clk 0:02:55]}  Be7 {[%clk 0:02:45]} 7. c4 {[%clk 0:02:55]}  O-O {[%clk 0:02:43]} 8. d3 {[%clk 0:02:53]}  exd3 {[%clk 0:02:36]} 9. Bxd3 {[%clk 0:02:54]}  d5 {[%clk 0:02:29]} 10. cxd5 {[%clk 0:02:46]}  Nxd5 {[%clk 0:02:24]} 11. a3 {[%clk 0:02:42]}  c5 {[%clk 0:02:13]} 12. Bb2 {[%clk 0:02:42]}  Bf6 {[%clk 0:02:13]} 13. Bxf6 {[%clk 0:02:33]}  Qxf6 {[%clk 0:02:12]} 14. Ra2 {[%clk 0:02:34]}  Be6 {[%clk 0:02:08]} 15. O-O {[%clk 0:02:33]}  Rac8 {[%clk 0:02:03]} 16. Rd2 {[%clk 0:02:33]}  Rfd8 {[%clk 0:02:00]} 17. Qc2 {[%clk 0:02:33]}  g6 {[%clk 0:01:59]} 18. Rfd1 {[%clk 0:02:29]}  Kg7 {[%clk 0:01:57]} 19. Be4 {[%clk 0:02:26]}  Qe5 {[%clk 0:01:25]} 20. Bxd5 {[%clk 0:02:19]}  Rxd5 {[%clk 0:01:24]} 21. Rxd5 {[%clk 0:02:10]}  Bxd5 {[%clk 0:01:24]} 22. Nc3 {[%clk 0:02:11]}  Be6 {[%clk 0:01:17]} 23. h3 {[%clk 0:01:59]}  a6 {[%clk 0:01:15]} 24. a4 {[%clk 0:01:47]}  b6 {[%clk 0:01:12]} 25. Ne2 {[%clk 0:01:43]}  c4 {[%clk 0:00:59]} 26. b4 {[%clk 0:01:37]}  c3 {[%clk 0:00:59]} 27. Rd4 {[%clk 0:01:38]}  Bf5 {[%clk 0:00:51]} 28. e4 {[%clk 0:01:33]}  Be6 {[%clk 0:00:47]} 29. f3 {[%clk 0:01:13]}  a5 {[%clk 0:00:40]} 30. bxa5 {[%clk 0:01:09]}  Qxa5 {[%clk 0:00:37]} 31. Rd3 {[%clk 0:00:56]}  Rc4 {[%clk 0:00:22]} 32. Rxc3 {[%clk 0:00:54]}  Qxa4 {[%clk 0:00:17]} 33. Rxc4 {[%clk 0:00:49]}  Qxc4 {[%clk 0:00:16]} 34. Qb2+ {[%clk 0:00:44]}  Kg8 {[%clk 0:00:16]} 35. Nd4 {[%clk 0:00:33]}  Qc5 {[%clk 0:00:17]} 36. Kh2 {[%clk 0:00:30]}  Bc4 {[%clk 0:00:17]} 37. f4 {[%clk 0:00:28]}  b5 {[%clk 0:00:17]} 38. e5 {[%clk 0:00:28]}  b4 {[%clk 0:00:17]} 39. Nf3 {[%clk 0:00:24]}  b3 {[%clk 0:00:16]} 40. f5 {[%clk 0:00:24]}  gxf5 {[%clk 0:00:15]} 41. Qd2 {[%clk 0:00:21]}  Qe7 {[%clk 0:00:12]} 42. Qd4 {[%clk 0:00:18]}  Be6 {[%clk 0:00:11]} 43. Qb6 {[%clk 0:00:15]}  h6 {[%clk 0:00:10]} 44. Nd4 {[%clk 0:00:15]}  Bd5 {[%clk 0:00:06]} 45. Qb8+ {[%clk 0:00:13]}  Kh7 {[%clk 0:00:06]} 46. Nxf5 {[%clk 0:00:14]}  Qe6 {[%clk 0:00:05]} 47. Nd4 {[%clk 0:00:13]}  Qg6 {[%clk 0:00:04]} 48. g4 {[%clk 0:00:11]}  Qe4 {[%clk 0:00:04]} 49. Kg3 {[%clk 0:00:05]}  Qxd4 {[%clk 0:00:04]} 50. Qf8 {[%clk 0:00:04]}  Qxe5+ {[%clk 0:00:04]} 51. Kh4 {[%clk 0:00:04]}  Qg5+ {[%clk 0:00:03]} 52. Kg3 {[%clk 0:00:05]}  Qe3+ {[%clk 0:00:04]} 53. Kh4 {[%clk 0:00:05]}  Qf2+ {[%clk 0:00:04]} 54. Kh5 {[%clk 0:00:06]}  Qf6 {[%clk 0:00:03]} 55. h4 {[%clk 0:00:06]}  Qg6# {[%clk 0:00:04]} 0-1


[Site "https://www.chess.com"]

[Event "Titled Tuesday Blitz March 15 Late 2022"]
[White "Clawitter, Craig"]
[Black "Hoffmann, Asa"]
[WhiteFideId "2023105"]
[BlackFideId "2001470"]
[WhiteElo "2247"]
[BlackElo "2117"]
[Result "0-1"]
[Round "11"]
[TimeControl "180+1"]
[Date "2022.03.16"]
[WhiteClock "0:00:02"]
[BlackClock "0:01:13"]

1. e4 {[%clk 0:03:00]}  d6 {[%clk 0:02:59]} 2. d4 {[%clk 0:02:58]}  Nf6 {[%clk 0:02:57]} 3. Nc3 {[%clk 0:02:58]}  c6 {[%clk 0:02:57]} 4. f4 {[%clk 0:02:56]}  Qa5 {[%clk 0:02:55]} 5. e5 {[%clk 0:02:57]}  Ne4 {[%clk 0:02:54]} 6. Qf3 {[%clk 0:02:57]}  Bf5 {[%clk 0:02:54]} 7. Bd3 {[%clk 0:02:37]}  d5 {[%clk 0:02:53]} 8. Ne2 {[%clk 0:02:19]}  h5 {[%clk 0:02:50]} 9. O-O {[%clk 0:02:07]}  Bg4 {[%clk 0:02:43]} 10. Qe3 {[%clk 0:02:03]}  Bxe2 {[%clk 0:02:40]} 11. Qxe2 {[%clk 0:01:43]}  Nxc3 {[%clk 0:02:39]} 12. Qe1 {[%clk 0:01:36]}  e6 {[%clk 0:02:37]} 13. bxc3 {[%clk 0:01:34]}  g6 {[%clk 0:02:36]} 14. f5 {[%clk 0:00:56]}  gxf5 {[%clk 0:02:35]} 15. Bg5 {[%clk 0:00:53]}  Nd7 {[%clk 0:02:34]} 16. Bxf5 {[%clk 0:00:50]}  Rg8 {[%clk 0:02:18]} 17. Bh4 {[%clk 0:00:37]}  c5 {[%clk 0:02:01]} 18. Bxe6 {[%clk 0:00:18]}  fxe6 {[%clk 0:01:58]} 19. Qe2 {[%clk 0:00:18]}  Rh8 {[%clk 0:01:31]} 20. Qf3 {[%clk 0:00:16]}  Rh7 {[%clk 0:01:26]} 21. Qg3 {[%clk 0:00:12]}  Re7 {[%clk 0:01:19]} 22. Qg6+ {[%clk 0:00:12]}  Kd8 {[%clk 0:01:18]} 23. Rf7 {[%clk 0:00:06]}  Qxc3 {[%clk 0:01:13]} 24. Bxe7+ {[%clk 0:00:02]}  Bxe7 {[%clk 0:01:13]} 0-1


[Site "https://www.chess.com"]

[Event "Titled Tuesday Blitz March 15 Late 2022"]
[White "Demchenko, Anton"]
[Black "Taichman, Ori"]
[WhiteFideId "4160258"]
[BlackFideId "2804069"]
[WhiteElo "2539"]
[BlackElo "2227"]
[Result "1-0"]
[Round "11"]
[TimeControl "180+1"]
[Date "2022.03.15"]
[WhiteClock "0:00:07"]
[BlackClock "0:00:01"]

1. e4 {[%clk 0:03:00]}  c5 {[%clk 0:02:49]} 2. Nf3 {[%clk 0:03:00]}  Nc6 {[%clk 0:02:48]} 3. Bb5 {[%clk 0:02:59]}  d6 {[%clk 0:02:46]} 4. O-O {[%clk 0:02:59]}  Bd7 {[%clk 0:02:45]} 5. Re1 {[%clk 0:02:59]}  Nf6 {[%clk 0:02:45]} 6. c3 {[%clk 0:02:59]}  a6 {[%clk 0:02:46]} 7. Bf1 {[%clk 0:02:59]}  Bg4 {[%clk 0:02:45]} 8. d4 {[%clk 0:03:00]}  Bxf3 {[%clk 0:02:44]} 9. gxf3 {[%clk 0:03:00]}  e5 {[%clk 0:02:44]} 10. d5 {[%clk 0:02:47]}  Ne7 {[%clk 0:02:45]} 11. f4 {[%clk 0:02:47]}  Ng6 {[%clk 0:02:41]} 12. f5 {[%clk 0:02:47]}  Ne7 {[%clk 0:02:40]} 13. Bg5 {[%clk 0:02:38]}  Nd7 {[%clk 0:02:35]} 14. Nd2 {[%clk 0:02:35]}  f6 {[%clk 0:02:32]} 15. Bh4 {[%clk 0:02:27]}  g6 {[%clk 0:02:30]} 16. Bh3 {[%clk 0:02:20]}  Rg8 {[%clk 0:02:25]} 17. Kh1 {[%clk 0:02:19]}  Bh6 {[%clk 0:02:17]} 18. Nc4 {[%clk 0:02:17]}  Nc8 {[%clk 0:02:08]} 19. fxg6 {[%clk 0:02:16]}  hxg6 {[%clk 0:02:05]} 20. Be6 {[%clk 0:02:17]}  Rg7 {[%clk 0:01:57]} 21. a4 {[%clk 0:02:11]}  Bf4 {[%clk 0:01:40]} 22. Qg4 {[%clk 0:02:07]}  Ke7 {[%clk 0:01:23]} 23. a5 {[%clk 0:02:02]}  Nf8 {[%clk 0:01:20]} 24. Bg3 {[%clk 0:01:34]}  Bxg3 {[%clk 0:00:57]} 25. fxg3 {[%clk 0:01:34]}  b5 {[%clk 0:00:57]} 26. axb6 {[%clk 0:01:33]}  Nxb6 {[%clk 0:00:57]} 27. Na5 {[%clk 0:01:34]}  Qc7 {[%clk 0:00:32]} 28. Rf1 {[%clk 0:01:31]}  Nh7 {[%clk 0:00:31]} 29. Nc6+ {[%clk 0:01:29]}  Ke8 {[%clk 0:00:30]} 30. Qh4 {[%clk 0:01:28]}  Nd7 {[%clk 0:00:24]} 31. Qh6 {[%clk 0:01:18]}  Ndf8 {[%clk 0:00:24]} 32. Bg4 {[%clk 0:01:11]}  a5 {[%clk 0:00:19]} 33. Be2 {[%clk 0:01:03]}  Kf7 {[%clk 0:00:14]} 34. h4 {[%clk 0:01:01]}  Kg8 {[%clk 0:00:14]} 35. Qe3 {[%clk 0:00:59]}  g5 {[%clk 0:00:12]} 36. h5 {[%clk 0:00:59]}  g4 {[%clk 0:00:13]} 37. Rf5 {[%clk 0:00:57]}  Rg5 {[%clk 0:00:12]} 38. Rxg5+ {[%clk 0:00:56]}  Nxg5 {[%clk 0:00:12]} 39. Bxg4 {[%clk 0:00:56]}  Qh7 {[%clk 0:00:10]} 40. Re1 {[%clk 0:00:55]}  f5 {[%clk 0:00:09]} 41. exf5 {[%clk 0:00:54]}  Nd7 {[%clk 0:00:09]} 42. Qxg5+ {[%clk 0:00:51]}  Kh8 {[%clk 0:00:08]} 43. f6 {[%clk 0:00:51]}  Rg8 {[%clk 0:00:08]} 44. Qf5 {[%clk 0:00:44]}  Qxf5 {[%clk 0:00:05]} 45. Bxf5 {[%clk 0:00:45]}  Nxf6 {[%clk 0:00:05]} 46. g4 {[%clk 0:00:41]}  Nxg4 {[%clk 0:00:05]} 47. Rg1 {[%clk 0:00:29]}  Nf2+ {[%clk 0:00:05]} 48. Kh2 {[%clk 0:00:30]}  Rf8 {[%clk 0:00:06]} 49. Bc2 {[%clk 0:00:23]}  e4 {[%clk 0:00:06]} 50. Re1 {[%clk 0:00:20]}  e3 {[%clk 0:00:07]} 51. Kg3 {[%clk 0:00:19]}  Rg8+ {[%clk 0:00:04]} 52. Kf3 {[%clk 0:00:20]}  a4 {[%clk 0:00:04]} 53. Rxe3 {[%clk 0:00:19]}  Ng4 {[%clk 0:00:04]} 54. Re7 {[%clk 0:00:19]}  Nh2+ {[%clk 0:00:04]} 55. Kf4 {[%clk 0:00:18]}  Rg4+ {[%clk 0:00:03]} 56. Kf5 {[%clk 0:00:18]}  a3 {[%clk 0:00:03]} 57. bxa3 {[%clk 0:00:18]}  Rh4 {[%clk 0:00:03]} 58. Ke6 {[%clk 0:00:12]}  Nf3 {[%clk 0:00:02]} 59. Kxd6 {[%clk 0:00:12]}  Rxh5 {[%clk 0:00:03]} 60. Kxc5 {[%clk 0:00:10]}  Ng5 {[%clk 0:00:02]} 61. a4 {[%clk 0:00:06]}  Kg8 {[%clk 0:00:02]} 62. a5 {[%clk 0:00:06]}  Kf8 {[%clk 0:00:03]} 63. a6 {[%clk 0:00:06]}  Rh1 {[%clk 0:00:01]} 64. a7 {[%clk 0:00:06]}  Ra1 {[%clk 0:00:02]} 65. Rb7 {[%clk 0:00:07]}  Nf7 {[%clk 0:00:01]} 66. Rb8+ {[%clk 0:00:06]}  Kg7 {[%clk 0:00:01]} 67. a8=Q {[%clk 0:00:07]} 1-0


[Site "https://www.chess.com"]

[Event "Titled Tuesday Blitz March 15 Late 2022"]
[White "Desideri, Ricardo Maruchi"]
[Black "Vargas Pereda, Jesus Manue"]
[WhiteFideId "2110440"]
[BlackFideId "5115710"]
[WhiteElo "1945"]
[BlackElo "1855"]
[Result "1-0"]
[Round "11"]
[TimeControl "180+1"]
[Date "2022.03.16"]
[WhiteClock "0:00:03"]
[BlackClock "0:00:59"]

1. e4 {[%clk 0:02:52]}  c5 {[%clk 0:02:58]} 2. Nf3 {[%clk 0:02:51]}  a6 {[%clk 0:02:59]} 3. d4 {[%clk 0:02:51]}  cxd4 {[%clk 0:02:59]} 4. Nxd4 {[%clk 0:02:52]}  Nf6 {[%clk 0:03:00]} 5. Bd3 {[%clk 0:02:47]}  e5 {[%clk 0:03:00]} 6. Nb3 {[%clk 0:02:46]}  d5 {[%clk 0:02:59]} 7. exd5 {[%clk 0:02:45]}  Nxd5 {[%clk 0:02:59]} 8. Bd2 {[%clk 0:02:35]}  Nc6 {[%clk 0:02:59]} 9. Nc3 {[%clk 0:02:34]}  Be6 {[%clk 0:02:56]} 10. Qe2 {[%clk 0:02:30]}  Qc7 {[%clk 0:02:47]} 11. a3 {[%clk 0:02:20]}  Be7 {[%clk 0:02:46]} 12. O-O {[%clk 0:02:09]}  O-O {[%clk 0:02:42]} 13. Rae1 {[%clk 0:01:25]}  Bf6 {[%clk 0:02:41]} 14. Qe4 {[%clk 0:01:21]}  g6 {[%clk 0:02:15]} 15. Nxd5 {[%clk 0:01:19]}  Bxd5 {[%clk 0:02:14]} 16. Qxd5 {[%clk 0:01:19]}  Rad8 {[%clk 0:02:14]} 17. Qf3 {[%clk 0:01:15]}  Bg7 {[%clk 0:02:11]} 18. Bc3 {[%clk 0:01:12]}  f5 {[%clk 0:02:10]} 19. Qg3 {[%clk 0:01:08]}  b5 {[%clk 0:02:02]} 20. Nc5 {[%clk 0:00:54]}  Qd6 {[%clk 0:02:01]} 21. Nxa6 {[%clk 0:00:49]}  Nd4 {[%clk 0:01:59]} 22. Bxd4 {[%clk 0:00:45]}  exd4 {[%clk 0:01:58]} 23. Bxb5 {[%clk 0:00:42]}  Qb6 {[%clk 0:01:49]} 24. a4 {[%clk 0:00:38]}  Ra8 {[%clk 0:01:38]} 25. Nb4 {[%clk 0:00:36]}  Rxa4 {[%clk 0:01:30]} 26. Bxa4 {[%clk 0:00:34]}  Qxb4 {[%clk 0:01:31]} 27. Bb3+ {[%clk 0:00:34]}  Kh8 {[%clk 0:01:29]} 28. Qc7 {[%clk 0:00:31]}  d3 {[%clk 0:01:26]} 29. Re7 {[%clk 0:00:27]}  Qd4 {[%clk 0:01:22]} 30. c3 {[%clk 0:00:24]}  Qf6 {[%clk 0:01:19]} 31. Rfe1 {[%clk 0:00:19]}  h6 {[%clk 0:01:18]} 32. R7e6 {[%clk 0:00:17]}  Qg5 {[%clk 0:01:14]} 33. Re7 {[%clk 0:00:16]}  Qf6 {[%clk 0:01:12]} 34. Rd1 {[%clk 0:00:16]}  Ra8 {[%clk 0:01:01]} 35. g3 {[%clk 0:00:14]}  f4 {[%clk 0:00:59]} 36. Rxd3 {[%clk 0:00:14]}  fxg3 {[%clk 0:00:58]} 37. hxg3 {[%clk 0:00:13]}  Rf8 {[%clk 0:00:58]} 38. Rd2 {[%clk 0:00:11]}  h5 {[%clk 0:00:56]} 39. f4 {[%clk 0:00:08]}  h4 {[%clk 0:00:55]} 40. Rd8 {[%clk 0:00:07]}  Rxd8 {[%clk 0:00:53]} 41. Qxd8+ {[%clk 0:00:06]}  Kh7 {[%clk 0:00:54]} 42. Rxg7+ {[%clk 0:00:05]}  Qxg7 {[%clk 0:00:54]} 43. Qxh4+ {[%clk 0:00:05]}  Qh6 {[%clk 0:00:52]} 44. Qxh6+ {[%clk 0:00:06]}  Kxh6 {[%clk 0:00:53]} 45. c4 {[%clk 0:00:06]}  Kg7 {[%clk 0:00:53]} 46. c5 {[%clk 0:00:06]}  Kf8 {[%clk 0:00:54]} 47. c6 {[%clk 0:00:07]}  Ke8 {[%clk 0:00:55]} 48. Ba4 {[%clk 0:00:06]}  Kd8 {[%clk 0:00:55]} 49. b4 {[%clk 0:00:07]}  Kc7 {[%clk 0:00:55]} 50. b5 {[%clk 0:00:07]}  Kb6 {[%clk 0:00:56]} 51. Kf2 {[%clk 0:00:07]}  g5 {[%clk 0:00:56]} 52. Kf3 {[%clk 0:00:07]}  Kc7 {[%clk 0:00:57]} 53. fxg5 {[%clk 0:00:06]}  Kb6 {[%clk 0:00:57]} 54. g6 {[%clk 0:00:07]}  Kc7 {[%clk 0:00:57]} 55. g7 {[%clk 0:00:07]}  Kb6 {[%clk 0:00:58]} 56. g8=Q {[%clk 0:00:07]}  Ka5 {[%clk 0:00:59]} 57. Qa8+ {[%clk 0:00:07]}  Kb4 {[%clk 0:00:59]} 58. c7 {[%clk 0:00:07]}  Kc5 {[%clk 0:01:00]} 59. c8=Q+ {[%clk 0:00:06]}  Kd4 {[%clk 0:01:01]} 60. Qg4+ {[%clk 0:00:05]}  Ke5 {[%clk 0:01:00]} 61. Qae4+ {[%clk 0:00:05]}  Kd6 {[%clk 0:01:00]} 62. Qge6+ {[%clk 0:00:05]}  Kc5 {[%clk 0:01:00]} 63. Q4c6+ {[%clk 0:00:05]}  Kd4 {[%clk 0:01:00]} 64. Qec4+ {[%clk 0:00:05]}  Ke5 {[%clk 0:00:59]} 65. Q6e4+ {[%clk 0:00:05]}  Kd6 {[%clk 0:00:59]} 66. Qcd5+ {[%clk 0:00:05]}  Kc7 {[%clk 0:00:59]} 67. Qec4+ {[%clk 0:00:05]}  Kb6 {[%clk 0:00:58]} 68. Qdc6+ {[%clk 0:00:05]}  Ka5 {[%clk 0:00:59]} 69. Qa6# {[%clk 0:00:03]} 1-0


[Site "https://www.chess.com"]

[Event "Titled Tuesday Blitz March 15 Late 2022"]
[White "Estrada Nieto, Julian"]
[Black "Mogranzini, Roberto"]
[WhiteFideId "5101018"]
[BlackFideId "810894"]
[WhiteElo "2246"]
[BlackElo "2469"]
[Result "0-1"]
[Round "11"]
[TimeControl "180+1"]
[Date "2022.03.16"]
[WhiteClock "0:00:09"]
[BlackClock "0:00:57"]

1. e4 {[%clk 0:02:49]}  d5 {[%clk 0:02:56]} 2. exd5 {[%clk 0:02:48]}  Qxd5 {[%clk 0:02:57]} 3. Nc3 {[%clk 0:02:48]}  Qd8 {[%clk 0:02:57]} 4. g3 {[%clk 0:02:45]}  Bd7 {[%clk 0:02:56]} 5. Bg2 {[%clk 0:02:45]}  Bc6 {[%clk 0:02:57]} 6. Nf3 {[%clk 0:02:44]}  Nd7 {[%clk 0:02:56]} 7. O-O {[%clk 0:02:43]}  e6 {[%clk 0:02:56]} 8. d4 {[%clk 0:02:43]}  Ngf6 {[%clk 0:02:56]} 9. Qe2 {[%clk 0:02:34]}  Be7 {[%clk 0:02:56]} 10. Bg5 {[%clk 0:02:26]}  O-O {[%clk 0:02:56]} 11. Rad1 {[%clk 0:02:26]}  Nd5 {[%clk 0:02:54]} 12. Nxd5 {[%clk 0:02:07]}  Bxd5 {[%clk 0:02:53]} 13. Bf4 {[%clk 0:02:01]}  b5 {[%clk 0:02:31]} 14. Rfe1 {[%clk 0:01:48]}  a6 {[%clk 0:02:14]} 15. h4 {[%clk 0:01:42]}  Qc8 {[%clk 0:02:09]} 16. h5 {[%clk 0:01:30]}  h6 {[%clk 0:02:03]} 17. Ne5 {[%clk 0:01:28]}  Bxg2 {[%clk 0:02:00]} 18. Kxg2 {[%clk 0:01:28]}  Nxe5 {[%clk 0:02:00]} 19. Bxe5 {[%clk 0:01:22]}  Rd8 {[%clk 0:01:53]} 20. Qg4 {[%clk 0:01:08]}  Bf8 {[%clk 0:01:51]} 21. Rd3 {[%clk 0:01:01]}  Qb7+ {[%clk 0:01:47]} 22. Qf3 {[%clk 0:00:53]}  Qxf3+ {[%clk 0:01:45]} 23. Kxf3 {[%clk 0:00:53]}  c5 {[%clk 0:01:41]} 24. dxc5 {[%clk 0:00:48]}  Rxd3+ {[%clk 0:01:41]} 25. cxd3 {[%clk 0:00:48]}  Bxc5 {[%clk 0:01:42]} 26. Rc1 {[%clk 0:00:45]}  Bf8 {[%clk 0:01:40]} 27. g4 {[%clk 0:00:38]}  f6 {[%clk 0:01:36]} 28. Bf4 {[%clk 0:00:36]}  e5 {[%clk 0:01:33]} 29. Be3 {[%clk 0:00:36]}  Rd8 {[%clk 0:01:33]} 30. Ke4 {[%clk 0:00:34]}  Kf7 {[%clk 0:01:14]} 31. Rc6 {[%clk 0:00:34]}  Rd6 {[%clk 0:01:13]} 32. Rxd6 {[%clk 0:00:30]}  Bxd6 {[%clk 0:01:13]} 33. Kd5 {[%clk 0:00:31]}  Bf8 {[%clk 0:01:08]} 34. Kc6 {[%clk 0:00:30]}  g6 {[%clk 0:01:06]} 35. Kb7 {[%clk 0:00:23]}  f5 {[%clk 0:01:06]} 36. hxg6+ {[%clk 0:00:22]}  Kxg6 {[%clk 0:01:06]} 37. gxf5+ {[%clk 0:00:14]}  Kxf5 {[%clk 0:01:05]} 38. Kxa6 {[%clk 0:00:15]}  h5 {[%clk 0:01:04]} 39. f3 {[%clk 0:00:11]}  h4 {[%clk 0:01:00]} 40. Bf2 {[%clk 0:00:11]}  h3 {[%clk 0:00:59]} 41. Bg3 {[%clk 0:00:11]}  Bh6 {[%clk 0:01:00]} 42. Kxb5 {[%clk 0:00:10]}  Bf4 {[%clk 0:00:58]} 43. Bxf4 {[%clk 0:00:05]}  Kxf4 {[%clk 0:00:57]} 44. a4 {[%clk 0:00:06]}  h2 {[%clk 0:00:56]} 45. a5 {[%clk 0:00:07]}  h1=Q {[%clk 0:00:57]} 46. a6 {[%clk 0:00:08]}  Qxf3 {[%clk 0:00:57]} 47. a7 {[%clk 0:00:09]} 0-1


[Site "https://www.chess.com"]

[Event "Titled Tuesday Blitz March 15 Late 2022"]
[White "Ezat, Mohamed"]
[Black "Fishbein, Mitch"]
[WhiteFideId "10600906"]
[BlackFideId "30922917"]
[WhiteElo "2386"]
[BlackElo "1939"]
[Result "1/2-1/2"]
[Round "11"]
[TimeControl "180+1"]
[Date "2022.03.15"]
[WhiteClock "0:00:06"]
[BlackClock "0:00:05"]

1. d4 {[%clk 0:02:43]}  Nf6 {[%clk 0:02:57]} 2. c4 {[%clk 0:02:43]}  g6 {[%clk 0:02:55]} 3. Nc3 {[%clk 0:02:43]}  Bg7 {[%clk 0:02:55]} 4. Nf3 {[%clk 0:02:12]}  O-O {[%clk 0:02:53]} 5. g3 {[%clk 0:02:11]}  d6 {[%clk 0:02:53]} 6. Bg2 {[%clk 0:02:12]}  Nc6 {[%clk 0:02:53]} 7. O-O {[%clk 0:02:12]}  e5 {[%clk 0:02:54]} 8. d5 {[%clk 0:02:11]}  Nb8 {[%clk 0:02:54]} 9. c5 {[%clk 0:02:12]}  Na6 {[%clk 0:02:53]} 10. Bg5 {[%clk 0:02:10]}  Nxc5 {[%clk 0:02:49]} 11. Nd2 {[%clk 0:01:55]}  h6 {[%clk 0:02:47]} 12. Bxf6 {[%clk 0:01:54]}  Bxf6 {[%clk 0:02:47]} 13. Nce4 {[%clk 0:01:54]}  Nxe4 {[%clk 0:02:47]} 14. Nxe4 {[%clk 0:01:54]}  Bg7 {[%clk 0:02:48]} 15. Rc1 {[%clk 0:01:53]}  f5 {[%clk 0:02:46]} 16. Nd2 {[%clk 0:01:52]}  e4 {[%clk 0:02:46]} 17. Nc4 {[%clk 0:01:51]}  Bd7 {[%clk 0:02:44]} 18. a4 {[%clk 0:01:49]}  a6 {[%clk 0:02:40]} 19. b4 {[%clk 0:01:49]}  b5 {[%clk 0:02:39]} 20. Na5 {[%clk 0:01:48]}  bxa4 {[%clk 0:02:37]} 21. Nc6 {[%clk 0:01:47]}  Bxc6 {[%clk 0:02:35]} 22. Rxc6 {[%clk 0:01:45]}  Qd7 {[%clk 0:02:18]} 23. Qxa4 {[%clk 0:01:44]}  Rfb8 {[%clk 0:02:19]} 24. Rfc1 {[%clk 0:01:43]}  Bd4 {[%clk 0:02:06]} 25. e3 {[%clk 0:01:42]}  Bb6 {[%clk 0:02:05]} 26. h4 {[%clk 0:01:38]}  h5 {[%clk 0:02:05]} 27. Bf1 {[%clk 0:01:36]}  a5 {[%clk 0:02:03]} 28. b5 {[%clk 0:01:30]}  Qg7 {[%clk 0:02:03]} 29. R1c4 {[%clk 0:01:22]}  Re8 {[%clk 0:02:01]} 30. Qc2 {[%clk 0:01:21]}  Re7 {[%clk 0:01:59]} 31. Be2 {[%clk 0:01:18]}  Qe5 {[%clk 0:01:52]} 32. Ra4 {[%clk 0:01:15]}  Bxe3 {[%clk 0:01:41]} 33. fxe3 {[%clk 0:01:06]}  Qxg3+ {[%clk 0:01:41]} 34. Kf1 {[%clk 0:01:07]}  Qxe3 {[%clk 0:01:41]} 35. Qc3 {[%clk 0:01:05]}  Qxc3 {[%clk 0:01:36]} 36. Rxc3 {[%clk 0:01:04]}  Kg7 {[%clk 0:01:36]} 37. Rca3 {[%clk 0:00:56]}  Kf6 {[%clk 0:01:31]} 38. Rxa5 {[%clk 0:00:47]}  Rxa5 {[%clk 0:01:32]} 39. Rxa5 {[%clk 0:00:46]}  Ke5 {[%clk 0:01:32]} 40. Bc4 {[%clk 0:00:45]}  Kd4 {[%clk 0:01:32]} 41. Ba2 {[%clk 0:00:45]}  Kc5 {[%clk 0:01:23]} 42. Ra8 {[%clk 0:00:44]}  Kxb5 {[%clk 0:01:18]} 43. Rg8 {[%clk 0:00:45]}  c6 {[%clk 0:01:11]} 44. Rb8+ {[%clk 0:00:40]}  Kc5 {[%clk 0:01:10]} 45. Rc8 {[%clk 0:00:40]}  Ra7 {[%clk 0:01:06]} 46. Rxc6+ {[%clk 0:00:25]}  Kd4 {[%clk 0:01:06]} 47. Rc2 {[%clk 0:00:26]}  f4 {[%clk 0:01:04]} 48. Kf2 {[%clk 0:00:25]}  g5 {[%clk 0:01:01]} 49. hxg5 {[%clk 0:00:24]}  Rg7 {[%clk 0:01:01]} 50. Rc4+ {[%clk 0:00:24]}  Ke5 {[%clk 0:01:01]} 51. Bb1 {[%clk 0:00:24]}  e3+ {[%clk 0:01:01]} 52. Kf3 {[%clk 0:00:23]}  Kxd5 {[%clk 0:00:47]} 53. Ra4 {[%clk 0:00:22]}  Ke5 {[%clk 0:00:43]} 54. g6 {[%clk 0:00:22]}  d5 {[%clk 0:00:27]} 55. Rxf4 {[%clk 0:00:22]}  Rb7 {[%clk 0:00:25]} 56. Rf5+ {[%clk 0:00:16]}  Ke6 {[%clk 0:00:25]} 57. Bd3 {[%clk 0:00:15]}  e2 {[%clk 0:00:10]} 58. Kxe2 {[%clk 0:00:12]}  Rb2+ {[%clk 0:00:10]} 59. Kf3 {[%clk 0:00:12]}  Rb3 {[%clk 0:00:10]} 60. Ke3 {[%clk 0:00:10]}  Rb7 {[%clk 0:00:04]} 61. Rxh5 {[%clk 0:00:08]}  Kf6 {[%clk 0:00:04]} 62. Rh7 {[%clk 0:00:06]}  Rxh7 {[%clk 0:00:03]} 63. gxh7 {[%clk 0:00:06]}  Kg7 {[%clk 0:00:03]} 64. Kd4 {[%clk 0:00:06]}  Kh8 {[%clk 0:00:04]} 65. Bg6 {[%clk 0:00:04]}  Kg7 {[%clk 0:00:04]} 66. Ke5 {[%clk 0:00:04]}  d4 {[%clk 0:00:04]} 67. Bd3 {[%clk 0:00:04]}  Kh8 {[%clk 0:00:04]} 68. Ke6 {[%clk 0:00:05]}  Kg7 {[%clk 0:00:05]} 69. Ke7 {[%clk 0:00:06]}  Kh8 {[%clk 0:00:05]} 70. Kf6 {[%clk 0:00:06]} 1/2-1/2


[Site "https://www.chess.com"]

[Event "Titled Tuesday Blitz March 15 Late 2022"]
[White "Farmani Anosheh, Armin"]
[Black "Mikhailov, Viacheslav"]
[WhiteFideId "24613240"]
[BlackFideId "4187369"]
[WhiteElo "2289"]
[BlackElo "2381"]
[Result "0-1"]
[Round "11"]
[TimeControl "180+1"]
[Date "2022.03.16"]
[WhiteClock "0:00:01"]
[BlackClock "0:00:21"]

1. e4 {[%clk 0:02:56]}  d6 {[%clk 0:03:00]} 2. d4 {[%clk 0:02:56]}  Nf6 {[%clk 0:02:59]} 3. Nc3 {[%clk 0:02:57]}  g6 {[%clk 0:02:59]} 4. Nf3 {[%clk 0:02:56]}  Bg7 {[%clk 0:03:00]} 5. Be2 {[%clk 0:02:57]}  O-O {[%clk 0:03:00]} 6. O-O {[%clk 0:02:57]}  Bg4 {[%clk 0:03:01]} 7. h3 {[%clk 0:02:48]}  Bxf3 {[%clk 0:03:01]} 8. Bxf3 {[%clk 0:02:49]}  e5 {[%clk 0:03:01]} 9. dxe5 {[%clk 0:02:49]}  dxe5 {[%clk 0:03:02]} 10. Qxd8 {[%clk 0:02:41]}  Rxd8 {[%clk 0:03:03]} 11. Bg5 {[%clk 0:02:41]}  c6 {[%clk 0:03:03]} 12. Rad1 {[%clk 0:02:40]}  Na6 {[%clk 0:03:01]} 13. a3 {[%clk 0:02:34]}  Nc5 {[%clk 0:03:01]} 14. Be3 {[%clk 0:02:00]}  Ne6 {[%clk 0:02:54]} 15. Ne2 {[%clk 0:02:01]}  Bf8 {[%clk 0:02:32]} 16. Rxd8 {[%clk 0:01:49]}  Rxd8 {[%clk 0:02:00]} 17. Bxa7 {[%clk 0:01:45]}  Rd2 {[%clk 0:02:00]} 18. Rc1 {[%clk 0:01:42]}  Bh6 {[%clk 0:01:56]} 19. Be3 {[%clk 0:01:37]}  Bxe3 {[%clk 0:01:56]} 20. fxe3 {[%clk 0:01:38]}  Nxe4 {[%clk 0:01:34]} 21. Bxe4 {[%clk 0:01:04]}  Rxe2 {[%clk 0:01:34]} 22. Bd3 {[%clk 0:01:03]}  Rd2 {[%clk 0:01:34]} 23. Bc4 {[%clk 0:00:46]}  Nc5 {[%clk 0:01:10]} 24. b4 {[%clk 0:00:29]}  Ne4 {[%clk 0:01:06]} 25. a4 {[%clk 0:00:28]}  Nc3 {[%clk 0:01:00]} 26. a5 {[%clk 0:00:27]}  Kg7 {[%clk 0:01:00]} 27. Kh2 {[%clk 0:00:24]}  f5 {[%clk 0:00:59]} 28. a6 {[%clk 0:00:16]}  bxa6 {[%clk 0:01:00]} 29. Bxa6 {[%clk 0:00:17]}  Nd5 {[%clk 0:01:00]} 30. b5 {[%clk 0:00:16]}  cxb5 {[%clk 0:01:00]} 31. Bxb5 {[%clk 0:00:15]}  Nxe3 {[%clk 0:01:00]} 32. c4 {[%clk 0:00:16]}  Rxg2+ {[%clk 0:00:48]} 33. Kh1 {[%clk 0:00:16]}  Rb2 {[%clk 0:00:48]} 34. Ba6 {[%clk 0:00:15]}  Rb6 {[%clk 0:00:27]} 35. Bb5 {[%clk 0:00:06]}  Kf6 {[%clk 0:00:25]} 36. Ba4 {[%clk 0:00:04]}  Rb4 {[%clk 0:00:23]} 37. Bb5 {[%clk 0:00:05]}  e4 {[%clk 0:00:23]} 38. Rc3 {[%clk 0:00:04]}  f4 {[%clk 0:00:23]} 39. Bc6 {[%clk 0:00:03]}  Ke5 {[%clk 0:00:22]} 40. c5 {[%clk 0:00:03]}  Rc4 {[%clk 0:00:22]} 41. Rxc4 {[%clk 0:00:01]}  Nxc4 {[%clk 0:00:23]} 42. Ba8 {[%clk 0:00:01]}  f3 {[%clk 0:00:21]} 0-1


[Site "https://www.chess.com"]